[Event "EYCC Girls-U14 2019"]
[Site "Bratislava"]
[Date "2019.08.02"]
[Round "1.1"]
[White "Yakimova, Mariya"]
[Black "Dakic, Marta"]
[Result "1-0"]
[ECO "D02"]
[WhiteElo "2250"]
[BlackElo "1680"]
[Annotator "NA"]
[PlyCount "95"]
[EventDate "2019.08.02"]
[EventType "swiss"]
[EventCountry "SVK"]
[SourceTitle "playchess.com"]
[Source "ChessBase"]
[SourceQuality "1"]
[TimeControl "40/5400+30:1800+30"]

1. d4 {[%emt 0:00:00]} d5 {[%emt 0:00:00]} 2. Nf3 {[%emt 0:00:00]} Nf6 {[%emt 0:00:00]} 3. c4 {[%emt 0:00:00]} c6 {[%emt 0:00:00]} 4. g3 {[%emt 0:00:00]} Bf5 {[%emt 0:00:02]} 5. Bg2 {[%emt 0:00:08]} h6 {[%emt 0:00:22]} 6. O-O {[%emt 0:00:06]} e6 {[%emt 0:00:05]} 7. Nc3 {[%emt 0:00:50]} Be7 {[%emt 0:01:59]} 8. Qb3 {[%emt 0:05:53]} Qb6 {[%emt 0:02:55]} 9. c5 {[%emt 0:02:11]} Qc7 {[%emt 0:01:13]} 10. Bf4 {[%emt 0:00:06]} Qc8 {[%emt 0:00:08]} 11. Nd2 {[%emt 0:05:16]} Bh7 {[%emt 0:03:30]} 12. Rae1 {[%emt 0:02:45]} Nh5 {[%emt 0:11:30]} 13. Be5 {[%emt 0:07:57]} Nd7 {[%emt 0:03:49]} 14. f4 {[%emt 0:00:30]} O-O {[%emt 0:03:01]} 15. e4 {[%emt 0:01:05]} Nhf6 {[%emt 0:01:24]} 16. Bxf6 {[%emt 0:02:25]} Bxf6 {[%emt 0:01:20]} 17. e5 {[%emt 0:00:18]} Be7 {[%emt 0:00:08]} 18. Qd1 {[%emt 0:07:25]} b6 {[%emt 0:07:53]} 19. cxb6 {[%emt 0:01:05]} axb6 {[%emt 0:02:21]} 20. Bh3 {[%emt 0:02:47]} Bb4 {[%emt 0:04:25]} 21. f5 {[%emt 0:05:02]} Bxf5 {[%emt 0:03:00]} 22. Bxf5 {[%emt 0:00:22]} exf5 {[%emt 0:00:08]} 23. Nf3 {[%emt 0:02:34]} Bxc3 {[%emt 0:05:10]} 24. bxc3 {[%emt 0:00:06]} Rxa2 {[%emt 0:03:42]} 25. Nh4 {[%emt 0:00:17]} Qd8 {[%emt 0:02:25]} 26. Nxf5 {[%emt 0:03:17]} Qg5 {[%emt 0:06:37]} 27. Rf4 {[%emt 0:00:25]} Kh8 {[%emt 0:06:47]} 28. Ref1 {[%emt 0:05:28]} Qg6 {[%emt 0:08:37]} 29. Nd6 {[%emt 0:18:55]} Qe6 {[%emt 0:02:02]} 30. Nxf7+ {[%emt 0:08:11]} Kg8 {[%emt 0:00:08]} 31. Qh5 {[%emt 0:01:27]} Raa8 {[%emt 0:05:22]} 32. Nd6 {[%emt 0:01:31]} Rxf4 {[%emt 0:02:58]} 33. gxf4 {[%emt 0:01:42]} Nf6 {[%emt 0:05:26]} 34. Qg6 {[%emt 0:00:51]} Qg4+ {[%emt 0:00:51]} 35. Qxg4 {[%emt 0:00:03]} Nxg4 {[%emt 0:00:07]} 36. h3 {[%emt 0:02:19]} Ne3 {[%emt 0:00:27]} 37. Re1 {[%emt 0:00:05]} Nc4 {[%emt 0:01:21]} 38. Nxc4 {[%emt 0:00:17]} dxc4 {[%emt 0:00:06]} 39. Kf2 {[%emt 0:00:46]} Kf7 {[%emt 0:02:09]} 40. Kf3 {[%emt 0:00:00]} Ra3 {[%emt 0:00:00]} 41. Re3 {[%emt 0:01:27]} Ra5 {[%emt 0:08:07]} 42. f5 {[%emt 0:02:33]} b5 {[%emt 0:02:22]} 43. Ke4 {[%emt 0:00:54]} Ra7 {[%emt 0:00:16]} 44. Rg3 {[%emt 0:01:00]} Rc7 {[%emt 0:01:22]} 45. e6+ {[%emt 0:02:38]} Ke8 {[%emt 0:00:58]} 46. Ke5 {[%emt 0:00:22]} Kf8 {[%emt 0:02:16]} 47. Kd6 {[%emt 0:00:31]} Rc8 {[%emt 0:00:55]} 48. Kd7 {[%emt 0:00:26]} 1-0

[Event "EYCC Girls-U14 2019"]
[Site "Bratislava"]
[Date "2019.08.02"]
[Round "1.2"]
[White "Karavitaki, Evaggelia"]
[Black "Tarasenka, Aliaksandra"]
[Result "0-1"]
[ECO "B30"]
[WhiteElo "1681"]
[BlackElo "2231"]
[Annotator "NA"]
[PlyCount "114"]
[EventDate "2019.08.02"]
[EventType "swiss"]
[EventCountry "SVK"]
[SourceTitle "playchess.com"]
[Source "ChessBase"]
[SourceQuality "1"]
[TimeControl "40/5400+30:1800+30"]

1. e4 {[%emt 0:00:00]} c5 {[%emt 0:00:00]} 2. Nf3 {[%emt 0:00:00]} Nc6 {[%emt 0:00:00]} 3. Bb5 {[%emt 0:00:07]} e5 {[%emt 0:00:13]} 4. O-O {[%emt 0:09:54]} Nge7 {[%emt 0:01:11]} 5. c3 {[%emt 0:03:05]} g6 {[%emt 0:00:49]} 6. d4 {[%emt 0:21:03]} cxd4 {[%emt 0:00:26]} 7. cxd4 {[%emt 0:00:18]} exd4 {[%emt 0:00:20]} 8. Nxd4 {[%emt 0:00:25]} Bg7 {[%emt 0:00:38]} 9. Nf3 {[%emt 0:03:12]} O-O {[%emt 0:22:59]} 10. Qd6 {[%emt 0:26:24]} Qb6 {[%emt 0:07:26]} 11. Bxc6 {[%emt 0:02:56]} Nxc6 {[%emt 0:00:47]} 12. Nc3 {[%emt 0:03:31]} Qb4 {[%emt 0:10:32]} 13. Qxb4 {[%emt 0:14:00]} Nxb4 {[%emt 0:00:07]} 14. a3 {[%emt 0:03:27]} Nc2 {[%emt 0:04:54]} 15. Ra2 {[%emt 0:02:35]} b6 {[%emt 0:04:59]} 16. b3 {[%emt 0:03:24]} Na1 {[%emt 0:03:56]} 17. Rxa1 {[%emt 0:02:37]} Bxc3 {[%emt 0:00:47]} 18. Ra2 {[%emt 0:00:38]} Bb7 {[%emt 0:01:23]} 19. Rd1 {[%emt 0:01:17]} Bxe4 {[%emt 0:01:14]} 20. Bd2 {[%emt 0:00:32]} Bf6 {[%emt 0:01:00]} 21. Bb4 {[%emt 0:00:29]} Rfd8 {[%emt 0:00:51]} 22. Bd6 {[%emt 0:00:31]} Rac8 {[%emt 0:00:36]} 23. Re1 {[%emt 0:00:32]} Bc2 {[%emt 0:01:52]} 24. b4 {[%emt 0:00:22]} Kg7 {[%emt 0:01:22]} 25. h3 {[%emt 0:00:34]} h5 {[%emt 0:01:36]} 26. Re2 {[%emt 0:00:33]} Bb3 {[%emt 0:03:11]} 27. Rad2 {[%emt 0:00:20]} Rc1+ {[%emt 0:00:57]} 28. Kh2 {[%emt 0:00:21]} Be6 {[%emt 0:00:55]} 29. Nd4 {[%emt 0:00:49]} Ra1 {[%emt 0:01:22]} 30. Nc2 {[%emt 0:00:31]} Ra2 {[%emt 0:00:52]} 31. b5 {[%emt 0:00:31]} Bc4 {[%emt 0:01:50]} 32. Ne3 {[%emt 0:00:30]} Bxe2 {[%emt 0:00:53]} 33. Rxa2 Bxb5 {[%emt 0:00:09]} 34. Rc2 {[%emt 0:00:56]} Bc6 {[%emt 0:00:32]} 35. Kg1 {[%emt 0:00:32]} Re8 {[%emt 0:00:37]} 36. Rd2 {[%emt 0:00:29]} Be5 {[%emt 0:01:38]} 37. Nc4 {[%emt 0:00:27]} Bxd6 {[%emt 0:01:03]} 38. Nxd6 {[%emt 0:00:15]} Re1+ {[%emt 0:01:00]} 39. Kh2 {[%emt 0:00:07]} b5 {[%emt 0:01:04]} 40. Rd3 {[%emt 0:00:00]} Re5 {[%emt 0:00:00]} 41. f3 {[%emt 0:04:55]} a6 {[%emt 0:06:35]} 42. Kg3 {[%emt 0:02:00]} Kf8 {[%emt 0:03:34]} 43. Kf4 {[%emt 0:07:34]} f6 {[%emt 0:02:54]} 44. h4 {[%emt 0:01:06]} Rd5 {[%emt 0:01:37]} 45. Rxd5 {[%emt 0:01:21]} Bxd5 {[%emt 0:00:02]} 46. g4 {[%emt 0:00:41]} Ke7 {[%emt 0:00:41]} 47. Nc8+ {[%emt 0:06:33]} Ke6 {[%emt 0:00:14]} 48. gxh5 {[%emt 0:01:00]} gxh5 {[%emt 0:00:08]} 49. Ke3 {[%emt 0:00:39]} a5 {[%emt 0:03:52]} 50. Nb6 {[%emt 0:02:13]} Bc6 {[%emt 0:00:50]} 51. a4 {[%emt 0:01:05]} bxa4 {[%emt 0:00:30]} 52. Nc4 {[%emt 0:00:24]} Bd5 {[%emt 0:00:11]} 53. Na3 {[%emt 0:00:15]} Kd6 {[%emt 0:00:43]} 54. f4 {[%emt 0:01:24]} Kc5 {[%emt 0:00:11]} 55. Kd3 {[%emt 0:01:21]} Kb4 {[%emt 0:00:12]} 56. Nc2+ {[%emt 0:00:39]} Kb3 {[%emt 0:00:11]} 57. Nd4+ {[%emt 0:00:30]} Kb2 {[%emt 0:00:11]} 0-1

[Event "EYCC Girls-U14 2019"]
[Site "Bratislava"]
[Date "2019.08.02"]
[Round "1.3"]
[White "Toncheva, Nadya"]
[Black "Puia, Alexia-Teodora"]
[Result "1-0"]
[ECO "A84"]
[WhiteElo "2087"]
[BlackElo "1601"]
[Annotator "NA"]
[PlyCount "67"]
[EventDate "2019.08.02"]
[EventType "swiss"]
[EventCountry "SVK"]
[SourceTitle "playchess.com"]
[Source "ChessBase"]
[SourceQuality "1"]
[TimeControl "40/5400+30:1800+30"]

1. d4 {[%emt 0:00:00]} f5 {[%emt 0:00:00]} 2. c4 {[%emt 0:00:05]} e6 {[%emt 0:00:00]} 3. Nc3 {[%emt 0:00:31]} Nf6 {[%emt 0:00:05]} 4. e3 {[%emt 0:00:56]} Bb4 {[%emt 0:01:04]} 5. Bd3 {[%emt 0:01:28]} Bxc3+ {[%emt 0:02:50]} 6. bxc3 {[%emt 0:00:06]} d6 {[%emt 0:00:47]} 7. Nf3 {[%emt 0:04:52]} Nbd7 {[%emt 0:01:46]} 8. Qb3 {[%emt 0:04:30]} c5 {[%emt 0:06:28]} 9. Ng5 {[%emt 0:05:21]} Qe7 {[%emt 0:04:07]} 10. d5 {[%emt 0:00:53]} Ne5 {[%emt 0:00:51]} 11. Be2 {[%emt 0:10:31]} O-O {[%emt 0:10:35]} 12. O-O {[%emt 0:03:07]} h6 {[%emt 0:07:27]} 13. Nxe6 {[%emt 0:03:02]} Bxe6 {[%emt 0:00:15]} 14. dxe6 {[%emt 0:00:04]} Rfb8 {[%emt 0:03:40]} 15. f4 {[%emt 0:06:24]} Ng6 {[%emt 0:04:09]} 16. Qc2 {[%emt 0:06:44]} Qxe6 {[%emt 0:02:18]} 17. Rb1 {[%emt 0:02:28]} a6 {[%emt 0:05:25]} 18. Bf3 {[%emt 0:04:28]} Ra7 {[%emt 0:00:48]} 19. Rb6 {[%emt 0:00:23]} Ne7 {[%emt 0:04:33]} 20. Rd1 {[%emt 0:01:11]} Nc8 {[%emt 0:01:46]} 21. Rb2 {[%emt 0:03:53]} Kh8 {[%emt 0:04:38]} 22. Bd5 {[%emt 0:06:32]} Qd7 {[%emt 0:05:18]} 23. Qe2 {[%emt 0:03:21]} Ne7 {[%emt 0:05:24]} 24. Bf3 {[%emt 0:00:40]} Qe6 {[%emt 0:05:39]} 25. h3 {[%emt 0:01:48]} b6 {[%emt 0:05:56]} 26. Bd2 {[%emt 0:00:54]} Ne4 {[%emt 0:00:24]} 27. Be1 {[%emt 0:01:06]} Rd7 {[%emt 0:01:15]} 28. g4 {[%emt 0:01:39]} a5 {[%emt 0:03:22]} 29. Qd3 {[%emt 0:04:07]} d5 {[%emt 0:01:36]} 30. gxf5 {[%emt 0:00:27]} Qxf5 {[%emt 0:09:56]} 31. Bxe4 {[%emt 0:00:32]} Qxh3 {[%emt 0:00:13]} 32. cxd5 {[%emt 0:00:35]} Qh5 {[%emt 0:01:55]} 33. c4 {[%emt 0:00:30]} Rd6 {[%emt 0:00:39]} 34. Bc3 {[%emt 0:00:18]} 1-0

[Event "EYCC Girls-U14 2019"]
[Site "Bratislava"]
[Date "2019.08.02"]
[Round "1.4"]
[White "Eraslan, Yagmur"]
[Black "Nur-Mukhametova, Alisa"]
[Result "0-1"]
[ECO "B86"]
[WhiteElo "1651"]
[BlackElo "2126"]
[Annotator "NA"]
[PlyCount "86"]
[EventDate "2019.08.02"]
[EventType "swiss"]
[EventCountry "SVK"]
[SourceTitle "playchess.com"]
[Source "ChessBase"]
[SourceQuality "1"]
[TimeControl "40/5400+30:1800+30"]

1. e4 {[%emt 0:00:00]} c5 {[%emt 0:00:00]} 2. Nf3 {[%emt 0:00:00]} e6 {[%emt 0:00:19]} 3. d4 {[%emt 0:00:09]} cxd4 {[%emt 0:00:07]} 4. Nxd4 {[%emt 0:00:06]} Nf6 {[%emt 0:00:17]} 5. Nc3 {[%emt 0:01:12]} d6 {[%emt 0:00:02]} 6. Bc4 {[%emt 0:01:45]} Be7 {[%emt 0:00:20]} 7. O-O {[%emt 0:00:26]} O-O {[%emt 0:00:08]} 8. Be3 {[%emt 0:04:09]} Na6 {[%emt 0:02:53]} 9. f3 {[%emt 0:06:35]} Qc7 {[%emt 0:02:01]} 10. Qe2 {[%emt 0:04:21]} Nc5 {[%emt 0:01:48]} 11. a3 {[%emt 0:06:53]} a6 {[%emt 0:01:26]} 12. Rad1 {[%emt 0:17:47]} Re8 {[%emt 0:02:51]} 13. b4 {[%emt 0:03:18]} Ncd7 {[%emt 0:00:36]} 14. Bd2 {[%emt 0:11:58]} b5 {[%emt 0:05:45]} 15. Bxb5 {[%emt 0:08:41]} axb5 {[%emt 0:01:29]} 16. Ncxb5 {[%emt 0:00:32]} Qb7 {[%emt 0:06:10]} 17. c4 {[%emt 0:05:24]} Nb6 {[%emt 0:07:01]} 18. g4 {[%emt 0:05:17]} e5 {[%emt 0:03:00]} 19. Nf5 {[%emt 0:03:15]} Bxf5 {[%emt 0:02:01]} 20. gxf5 {[%emt 0:02:23]} Rac8 {[%emt 0:02:02]} 21. Rc1 {[%emt 0:02:06]} Nxc4 {[%emt 0:01:35]} 22. Rxc4 {[%emt 0:00:11]} Qxb5 {[%emt 0:00:08]} 23. Rfc1 {[%emt 0:00:03]} Ra8 {[%emt 0:01:10]} 24. Qe3 {[%emt 0:01:34]} d5 {[%emt 0:02:30]} 25. R4c2 {[%emt 0:06:29]} dxe4 {[%emt 0:01:59]} 26. fxe4 {[%emt 0:00:17]} Rad8 {[%emt 0:01:05]} 27. Rc4 {[%emt 0:02:44]} Ng4 {[%emt 0:02:11]} 28. Qe2 {[%emt 0:01:37]} Qb6+ {[%emt 0:01:19]} 29. Kf1 {[%emt 0:01:37]} Rxd2 {[%emt 0:01:56]} 30. Qxd2 {[%emt 0:00:02]} Ne3+ {[%emt 0:00:11]} 31. Ke2 {[%emt 0:00:04]} Nxc4 {[%emt 0:00:14]} 32. Rxc4 {[%emt 0:00:45]} Rd8 {[%emt 0:00:24]} 33. Qc1 {[%emt 0:01:21]} h6 {[%emt 0:00:48]} 34. Rc3 {[%emt 0:02:26]} Bg5 {[%emt 0:02:52]} 35. Qf1 {[%emt 0:01:30]} Rd2+ {[%emt 0:00:15]} 36. Kf3 {[%emt 0:00:06]} Rf2+ {[%emt 0:00:13]} 37. Qxf2 {[%emt 0:00:10]} Qd6 {[%emt 0:00:40]} 38. h4 {[%emt 0:00:24]} Qd1+ {[%emt 0:02:08]} 39. Kg3 {[%emt 0:01:11]} Bd2 {[%emt 0:02:11]} 40. Rc8+ {[%emt 0:00:15]} Kh7 {[%emt 0:00:02]} 41. Kg2 {[%emt 0:30:50]} Qg4+ {[%emt 0:00:46]} 42. Kh2 {[%emt 0:00:00]} Bf4+ {[%emt 0:00:07]} 43. Kh1 {[%emt 0:00:00]} Qh3+ {[%emt 0:00:06]} 0-1

[Event "EYCC Girls-U14 2019"]
[Site "Bratislava"]
[Date "2019.08.02"]
[Round "1.5"]
[White "Allahverdiyeva, Ayan"]
[Black "Croisille, Shanti"]
[Result "1-0"]
[ECO "B76"]
[WhiteElo "2114"]
[BlackElo "1695"]
[Annotator "NA"]
[PlyCount "51"]
[EventDate "2019.08.02"]
[EventType "swiss"]
[EventCountry "SVK"]
[SourceTitle "playchess.com"]
[Source "ChessBase"]
[SourceQuality "1"]
[TimeControl "40/5400+30:1800+30"]

1. e4 {[%emt 0:00:25]} c5 {[%emt 0:00:00]} 2. Nf3 {[%emt 0:00:04]} d6 {[%emt 0:00:00]} 3. d4 {[%emt 0:00:04]} cxd4 {[%emt 0:00:00]} 4. Nxd4 {[%emt 0:00:03]} Nf6 {[%emt 0:00:00]} 5. Nc3 {[%emt 0:00:04]} g6 {[%emt 0:00:03]} 6. Be3 {[%emt 0:00:26]} Bg7 {[%emt 0:00:05]} 7. f3 {[%emt 0:00:12]} O-O {[%emt 0:00:07]} 8. Qd2 {[%emt 0:00:09]} Nc6 {[%emt 0:00:07]} 9. g4 {[%emt 0:00:44]} Bd7 {[%emt 0:00:27]} 10. h4 {[%emt 0:06:52]} Qa5 {[%emt 0:00:44]} 11. h5 {[%emt 0:01:08]} Rfc8 {[%emt 0:02:15]} 12. hxg6 {[%emt 0:02:05]} hxg6 {[%emt 0:01:11]} 13. O-O-O {[%emt 0:02:50]} Ne5 {[%emt 0:01:48]} 14. Bh6 {[%emt 0:01:40]} Bh8 {[%emt 0:05:37]} 15. Qh2 {[%emt 0:03:52]} Nfxg4 {[%emt 0:10:44]} 16. fxg4 {[%emt 0:01:43]} Nxg4 {[%emt 0:00:08]} 17. Qd2 {[%emt 0:08:38]} Nxh6 {[%emt 0:10:22]} 18. Qxh6 {[%emt 0:02:07]} Bg7 {[%emt 0:00:09]} 19. Qh7+ {[%emt 0:01:15]} Kf8 {[%emt 0:00:07]} 20. Bh3 {[%emt 0:01:15]} Bxh3 {[%emt 0:11:58]} 21. Rxh3 {[%emt 0:00:03]} Qe5 {[%emt 0:01:01]} 22. Rf3 {[%emt 0:02:13]} Bf6 {[%emt 0:00:58]} 23. Nd5 {[%emt 0:00:51]} Qh5 {[%emt 0:19:55]} 24. Ne6+ {[%emt 0:01:05]} Ke8 {[%emt 0:09:12]} 25. Nxf6+ {[%emt 0:00:09]} exf6 {[%emt 0:00:35]} 26. Ng7+ {[%emt 0:00:01]} 1-0

[Event "EYCC Girls-U14 2019"]
[Site "Bratislava"]
[Date "2019.08.02"]
[Round "1.6"]
[White "Mikhailina, Elena"]
[Black "Roebers, Eline"]
[Result "0-1"]
[ECO "B48"]
[WhiteElo "1689"]
[BlackElo "2069"]
[Annotator "NA"]
[PlyCount "104"]
[EventDate "2019.08.02"]
[EventType "swiss"]
[EventCountry "SVK"]
[SourceTitle "playchess.com"]
[Source "ChessBase"]
[SourceQuality "1"]
[TimeControl "40/5400+30:1800+30"]

1. e4 {[%emt 0:00:00]} c5 {[%emt 0:00:00]} 2. Nf3 {[%emt 0:00:00]} e6 {[%emt 0:00:04]} 3. d4 {[%emt 0:00:00]} cxd4 {[%emt 0:00:24]} 4. Nxd4 {[%emt 0:00:00]} Nc6 {[%emt 0:00:29]} 5. Nc3 {[%emt 0:05:08]} Qc7 {[%emt 0:01:34]} 6. Be3 {[%emt 0:10:29]} a6 {[%emt 0:01:25]} 7. Qd2 {[%emt 0:10:34]} Nf6 {[%emt 0:02:11]} 8. f3 {[%emt 0:02:46]} Be7 {[%emt 0:06:30]} 9. Be2 {[%emt 0:12:12]} O-O {[%emt 0:04:55]} 10. O-O {[%emt 0:00:12]} b5 {[%emt 0:10:38]} 11. a4 {[%emt 0:05:45]} b4 {[%emt 0:02:54]} 12. Na2 {[%emt 0:02:55]} d5 {[%emt 0:14:14]} 13. Nxc6 {[%emt 0:16:55]} Qxc6 {[%emt 0:01:55]} 14. Nxb4 {[%emt 0:01:54]} Bxb4 {[%emt 0:20:42]} 15. Qxb4 {[%emt 0:00:06]} dxe4 {[%emt 0:03:05]} 16. Bc5 {[%emt 0:05:38]} Rd8 {[%emt 0:05:59]} 17. fxe4 {[%emt 0:08:44]} Nxe4 {[%emt 0:12:09]} 18. Bf3 {[%emt 0:02:12]} Bb7 {[%emt 0:01:56]} 19. Bxe4 {[%emt 0:09:11]} Qxe4 {[%emt 0:00:09]} 20. Qxe4 {[%emt 0:00:04]} Bxe4 {[%emt 0:00:05]} 21. c3 {[%emt 0:00:25]} Rd2 {[%emt 0:04:47]} 22. Rf2 {[%emt 0:00:12]} Rad8 {[%emt 0:01:12]} 23. Raf1 {[%emt 0:01:22]} Rxf2 {[%emt 0:02:12]} 24. Rxf2 {[%emt 0:00:29]} Rd1+ {[%emt 0:00:46]} 25. Rf1 {[%emt 0:00:08]} Rd2 {[%emt 0:00:03]} 26. Rf2 {[%emt 0:00:28]} Rd1+ {[%emt 0:01:28]} 27. Rf1 {[%emt 0:00:05]} Rd5 {[%emt 0:00:46]} 28. b4 {[%emt 0:03:07]} Rd2 {[%emt 0:00:44]} 29. Rf2 {[%emt 0:00:42]} Rd1+ {[%emt 0:00:28]} 30. Rf1 {[%emt 0:00:05]} Rxf1+ {[%emt 0:00:15]} 31. Kxf1 {[%emt 0:00:05]} Bc6 {[%emt 0:00:33]} 32. a5 {[%emt 0:00:44]} Bb5+ {[%emt 0:00:25]} 33. Kf2 {[%emt 0:00:06]} e5 {[%emt 0:00:27]} 34. Ke3 {[%emt 0:00:26]} f6 {[%emt 0:00:41]} 35. g3 {[%emt 0:00:38]} Kf7 {[%emt 0:00:28]} 36. Ke4 {[%emt 0:01:56]} Ke6 {[%emt 0:00:27]} 37. Bb6 {[%emt 0:02:13]} f5+ {[%emt 0:00:41]} 38. Ke3 {[%emt 0:00:14]} g5 {[%emt 0:00:39]} 39. Bc7 {[%emt 0:00:45]} f4+ {[%emt 0:00:33]} 40. gxf4 {[%emt 0:00:00]} gxf4+ {[%emt 0:00:00]} 41. Kf3 {[%emt 0:03:02]} Kf5 {[%emt 0:00:43]} 42. Bd6 {[%emt 0:03:04]} e4+ {[%emt 0:01:13]} 43. Kf2 {[%emt 0:00:06]} e3+ {[%emt 0:00:35]} 44. Kf3 {[%emt 0:01:30]} Bc6+ {[%emt 0:00:10]} 45. Ke2 {[%emt 0:01:08]} Ke4 {[%emt 0:00:04]} 46. c4 {[%emt 0:03:22]} f3+ {[%emt 0:00:47]} 47. Kf1 {[%emt 0:03:19]} Bd7 {[%emt 0:01:24]} 48. Bg3 {[%emt 0:03:54]} Kd3 {[%emt 0:01:09]} 49. b5 {[%emt 0:05:44]} axb5 {[%emt 0:00:12]} 50. cxb5 {[%emt 0:00:50]} Bxb5 {[%emt 0:00:05]} 51. Be1 {[%emt 0:00:21]} Kc2+ {[%emt 0:00:20]} 52. Kg1 {[%emt 0:00:05]} Kd1 {[%emt 0:00:09] Kf1 Kxe1+ Kxe1} 0-1

[Event "EYCC Girls-U14 2019"]
[Site "Bratislava"]
[Date "2019.08.02"]
[Round "1.7"]
[White "Bondareva, Daria"]
[Black "Zvereva, Margarita"]
[Result "1-0"]
[ECO "B52"]
[WhiteElo "1998"]
[BlackElo "1693"]
[Annotator "NA RC"]
[PlyCount "171"]
[EventDate "2019.08.02"]
[EventType "swiss"]
[EventCountry "SVK"]
[SourceTitle "playchess.com"]
[Source "ChessBase"]
[SourceQuality "1"]
[TimeControl "40/5400+30:1800+30"]

1. e4 {[%emt 0:00:00]} c5 {[%emt 0:00:00]} 2. Nf3 {[%emt 0:00:12]} d6 {[%emt 0:00:00]} 3. Bb5+ {[%emt 0:00:17]} Bd7 {[%emt 0:00:07]} 4. Bxd7+ {[%emt 0:00:08]} Qxd7 {[%emt 0:00:18]} 5. O-O {[%emt 0:00:19]} Nc6 {[%emt 0:00:44]} 6. c3 {[%emt 0:00:19]} Nf6 {[%emt 0:00:37]} 7. Qe2 {[%emt 0:00:25]} e6 {[%emt 0:01:33]} 8. d4 {[%emt 0:01:32]} cxd4 {[%emt 0:00:55]} 9. cxd4 {[%emt 0:00:27]} Be7 {[%emt 0:01:16]} 10. Nc3 {[%emt 0:02:34]} O-O {[%emt 0:01:51]} 11. Rd1 {[%emt 0:05:05] B52: Sicilian: Moscow Variation with 3...Bd7} d5 {[%emt 0:07:11]} 12. Ne5 {[%emt 0:09:35]} Qc7 $146 {[%emt 0:06:35]} ({Predecessor:} 12... Qd8 13. Bf4 Rc8 14. Qb5 Na5 15. exd5 a6 16. Qe2 Nxd5 17. Bd2 Nc6 18. Qe4 Nf6 19. Qf4 Nb4 20. Rac1 Bd6 21. Qf3 Nbd5 22. Bg5 h6 23. Nxd5 Rxc1 24. Nxf6+ gxf6 25. Bxc1 {1-0 (25) Vasques,A (2237)-Dias,I (2151) Lisbon 2015}) 13. Bf4 {[%emt 0:09:50]} Nxe5 {[%emt 0:05:10]} 14. exd5 {[%emt 0:13:38]} Nxd5 {[%emt 0:04:59]} 15. Nxd5 {[%emt 0:02:25]} exd5 {[%emt 0:00:22]} 16. dxe5 {[%emt 0:02:43]} Rfd8 {[%emt 0:05:02]} 17. Rac1 {[%emt 0:02:26]} Qb6 {[%emt 0:07:41]} 18. Rc3 {[%emt 0:04:34]} Rd7 {[%emt 0:24:47]} 19. e6 {[%emt 0:11:04]} Qxe6 {[%emt 0:10:22]} 20. Re3 {[%emt 0:00:52]} Qf5 {[%emt 0:03:17]} 21. Rxe7 {[%emt 0:02:06]} Rxe7 {[%emt 0:00:08]} 22. Qxe7 {[%emt 0:00:10]} Qxf4 {[%emt 0:00:11]} 23. Qxb7 {[%emt 0:00:57]} Re8 {[%emt 0:04:40]} 24. g3 {[%emt 0:04:42]} Qe5 {[%emt 0:06:13]} 25. Qxa7 {[%emt 0:03:58]} Qxb2 {[%emt 0:01:05]} 26. Qd7 {[%emt 0:00:08]} Qe2 {[%emt 0:04:10]} 27. Qxd5 {[%emt 0:00:26]} g6 {[%emt 0:00:36]} 28. a4 {[%emt 0:02:39]} Re5 {[%emt 0:02:59]} 29. Qd3 {[%emt 0:03:27]} Qxd3 {[%emt 0:00:55]} 30. Rxd3 {[%emt 0:00:03]} Re1+ {[%emt 0:00:24]} 31. Kg2 {[%emt 0:00:01]} Ra1 {[%emt 0:00:27]} 32. Rd4 {[%emt 0:01:12]} Ra3 {[%emt 0:00:39]} 33. h4 {[%emt 0:03:03]} h5 {[%emt 0:00:09]} 34. g4 {[%emt 0:01:47]} hxg4 {[%emt 0:00:30]} 35. Rxg4 {[%emt 0:00:09]} Kg7 {[%emt 0:00:56]} 36. h5 {[%emt 0:03:58]} Kh6 {[%emt 0:00:21]} 37. hxg6 {[%emt 0:00:09]} fxg6 {[%emt 0:00:03]} 38. Rb4 {[%emt 0:01:31]} Ra2 {[%emt 0:01:02]} 39. Kf3 {[%emt 0:01:30]} Kg5 {[%emt 0:00:31]} 40. Ke3 {[%emt 0:02:06]} Kf5 {[%emt 0:00:28]} 41. Rb5+ {[%emt 0:31:32]} Kf6 {[%emt 0:30:22]} 42. a5 {[%emt 0:00:00]} Kg7 {[%emt 0:00:00]} 43. f3 {[%emt 0:00:00]} Ra4 {[%emt 0:00:00]} 44. f4 {[%emt 0:00:00]} Kf6 {[%emt 0:00:00]} 45. Kf3 {[%emt 0:00:00]} Kg7 {[%emt 0:00:00]} 46. Rc5 {[%emt 0:00:00]} Kh6 {[%emt 0:00:00]} 47. Ke3 {[%emt 0:00:00]} Kg7 {[%emt 0:00:00]} 48. Rc7+ {[%emt 0:00:00]} Kf6 {[%emt 0:00:00]} 49. Rc6+ {[%emt 0:00:00]} Kf5 {[%emt 0:00:14]} 50. a6 {[%emt 0:00:00]} Re4+ {[%emt 0:03:49]} 51. Kd3 {[%emt 0:00:00]} Rxf4 {[%emt 0:00:59]} 52. Rc5+ {[%emt 0:00:00]} Ke6 {[%emt 0:00:13]} 53. Ra5 {[%emt 0:00:00]} Rf8 {[%emt 0:00:14]} 54. Kc4 {[%emt 0:00:00]} Kd6 {[%emt 0:00:59]} 55. a7 {[%emt 0:00:00]} Ra8 {[%emt 0:00:13]} 56. Kb5 {[%emt 0:00:00]} Kc7 {[%emt 0:00:59]} 57. Ka6 {[%emt 0:00:00]} Rf8 {[%emt 0:00:38]} 58. Rc5+ {[%emt 0:00:00]} Kd6 {[%emt 0:00:26]} 59. Rg5 {[%emt 0:02:28]} Kc6 {[%emt 0:00:11]} 60. Rxg6+ {[%emt 0:02:20]} Kc7 {[%emt 0:00:05]} 61. Rb6 {[%emt 0:01:05]} Rf1 {[%emt 0:01:11]} 62. Rc6+ {[%emt 0:00:17]} Kxc6 {[%emt 0:00:32]} 63. a8=Q+ {[%emt 0:00:04]} Kd6 {[%emt 0:00:15]} 64. Qd8+ {[%emt 0:00:32]} Ke6 {[%emt 0:00:24]} 65. Qe8+ {[%emt 0:01:34]} Kd6 {[%emt 0:00:14]} 66. Qg6+ {[%emt 0:00:54]} Ke7 {[%emt 0:00:30]} 67. Qe4+ {[%emt 0:00:28]} Kf6 {[%emt 0:00:18]} 68. Kb6 {[%emt 0:01:19]} Rf5 {[%emt 0:00:12]} 69. Kc6 {[%emt 0:00:19]} Kg5 {[%emt 0:00:11]} 70. Kd6 {[%emt 0:01:53]} Rf4 {[%emt 0:00:16]} 71. Qe3 {[%emt 0:00:18]} Kf5 {[%emt 0:00:25]} 72. Qe6+ {[%emt 0:00:38]} Kg5 {[%emt 0:00:06]} 73. Ke5 {[%emt 0:00:26]} Rf1 {[%emt 0:00:27]} 74. Qg8+ {[%emt 0:00:28]} Kh6 {[%emt 0:00:48]} 75. Qg2 {[%emt 0:02:40]} Rf8 {[%emt 0:00:22]} 76. Ke6 {[%emt 0:00:45]} Kh7 {[%emt 0:00:14]} 77. Qh3+ {[%emt 0:01:28]} Kg7 {[%emt 0:00:14]} 78. Qg4+ {[%emt 0:00:09]} Kh7 {[%emt 0:00:13]} 79. Ke7 {[%emt 0:01:43]} Rg8 {[%emt 0:00:51]} 80. Qh3+ {[%emt 0:00:57]} Kg7 {[%emt 0:00:10]} 81. Qh5 {[%emt 0:00:14]} Ra8 {[%emt 0:01:13]} 82. Qg5+ {[%emt 0:00:16]} Kh7 {[%emt 0:00:30]} 83. Qh4+ {[%emt 0:00:17]} Kg7 {[%emt 0:00:27]} 84. Qg3+ {[%emt 0:00:08]} Kh6 {[%emt 0:00:11]} 85. Qh3+ {[%emt 0:00:05]} Kg5 {[%emt 0:00:09]} 86. Qg2+ {[%emt 0:00:02]} 1-0